fUST/lending_fUST_20240617
["ID","MTS","AMOUNT","RATE_DAILY","PERIOD"]
[329682970,1718569110484,-269.0,0.0002487,35]
[329682971,1718569110519,-216.74,0.0002488,35]
[329682972,1718569110579,-1204.0,0.0002488,35]
[329682973,1718569110628,-414.0,0.0002488,35]
[329682974,1718569110707,-150.5,0.0002488,35]
[329682975,1718569110753,-268.0,0.0002488,35]
[329682976,1718569110818,-323.0,0.0002488,35]
[329682977,1718569110865,-269.0,0.0002488,35]
[329682978,1718569110902,-150.5,0.0002489,35]
[329682979,1718569110934,-225.1,0.0002489,35]
[329682980,1718569110972,-150.5,0.0002489,35]
[329682981,1718569111008,-1204.0,0.0002489,35]
[329682982,1718569111063,-414.0,0.0002489,35]
[329682983,1718569111109,-150.5,0.0002489,35]
[329682984,1718569111155,-268.0,0.0002489,35]
[329682985,1718569111199,-323.0,0.0002489,35]
[329682986,1718569111265,-269.0,0.0002489,35]
[329682987,1718569111307,-1903.52,0.00024931,90]
[329682988,1718569111369,-466.16966744,0.00025,30]
[329682989,1718569111400,-166.05300446,0.00025,30]
[329682990,1718569111444,-1903.52,0.00025205,90]
[329682991,1718569111509,-838355.66863692,0.00025314,30]
[329682992,1718569111557,-1903.52,0.00025479,90]
[329682993,1718569111730,-1204.0,0.0002558,35]
[329682994,1718569111771,-414.0,0.0002558,35]
[329682995,1718569111810,-1204.0,0.0002559,35]
[329682996,1718569111854,-414.0,0.0002559,35]
[329682997,1718569111882,-1903.52,0.00025753,90]
[329682998,1718569111912,-151.0690987,0.00026,120]
[329682999,1718569111944,-1903.52,0.00026027,90]
[329683000,1718569111975,-420.4807,0.00026296,30]
[329683001,1718569112029,-1903.52,0.00026301,90]
[329683002,1718569112065,-1903.52,0.00026575,90]
[329683003,1718569112101,-1903.52,0.00026849,90]
[329683004,1718569112158,-268.0,0.0002688,35]
[329683005,1718569112188,-269.0,0.0002688,35]
[329683006,1718569112247,-323.0,0.0002688,35]
[329683007,1718569112309,-268.0,0.0002689,35]
[329683008,1718569112366,-269.0,0.0002689,35]
[329683009,1718569112427,-323.0,0.0002689,35]
[329683010,1718569112461,-1072.37,0.00027,30]
[329683011,1718569112493,-12569.27943073,0.00027,30]
[329683012,1718569112526,-612.1834725,0.00027,120]
[329683013,1718569112564,-1903.52,0.00027123,90]
[329683014,1718569112606,-1903.52,0.00027397,90]
[329683015,1718569112636,-500.0,0.00027397,30]
[329683016,1718569112671,-500.0,0.00027397,30]
[329683017,1718569112705,-500.0,0.00027397,30]
[329683018,1718569112735,-500.0,0.00027397,30]
[329683019,1718569112769,-500.0,0.00027397,30]
[329683020,1718569112806,-500.0,0.00027397,30]
[329683021,1718569112835,-500.0,0.00027397,30]
[329683022,1718569112868,-500.0,0.00027397,30]
[329683023,1718569112908,-500.0,0.00027397,30]
[329683024,1718569112954,-500.0,0.00027397,30]
[329683025,1718569112987,-500.0,0.00027397,30]
[329683026,1718569113020,-500.0,0.00027397,30]
[329683027,1718569113057,-500.0,0.00027397,30]
[329683028,1718569113095,-500.0,0.00027397,30]
[329683029,1718569113128,-500.0,0.00027397,30]
[329683030,1718569113161,-500.0,0.00027397,30]
[329683031,1718569113192,-500.0,0.00027397,30]
[329683032,1718569113227,-573.69950366,0.00027397,30]
[329683033,1718569113272,-2834.17785,0.00027397,120]
[329683034,1718569113310,-274.32,0.000275,30]
[329683035,1718569113344,-1903.52,0.00027671,90]
[329683036,1718569113392,-1903.52,0.00027945,90]
[329683037,1718569113430,-268.81,0.0002798,35]
[329683038,1718569113472,-269.63,0.0002798,35]
[329683039,1718569113512,-324.38,0.0002798,35]
[329683040,1718569113575,-1211.87,0.0002798,35]
[329683041,1718569113607,-422.11,0.0002798,35]
[329683042,1718569113653,-268.0,0.0002799,35]
[329683043,1718569113690,-269.0,0.0002799,35]
[329683044,1718569113734,-323.0,0.0002799,35]
[329683045,1718569113778,-1204.0,0.0002799,35]
[329683046,1718569113814,-414.0,0.0002799,35]
[329683047,1718569113852,-1000.0,0.00028,120]
[329683048,1718569113909,-416.0,0.00028,120]
[329683049,1718569113948,-21840.0,0.00028,120]
[329683050,1718569113990,-200.0,0.00028047,120]
[329683051,1718569114043,-1903.52,0.00028219,90]
[329683052,1718569114081,-1903.52,0.00028493,90]
[329683053,1718569114148,-312.04371956,0.000285,120]
[329683054,1718569114189,-1903.52,0.00028767,90]
[329683055,1718569114262,-2416.24162416,0.00028877,120]
[329683056,1718569114294,-346.91721198,0.0002892,30]
[329683057,1718569114335,-12140.42254158,0.00029,30]
[329683058,1718569114381,-1000.72395755,0.00029,120]
[329683059,1718569114424,-1903.52,0.00029041,90]
[329683060,1718569114459,-1903.52,0.00029315,90]
[329683061,1718569114501,-1903.52,0.00029589,90]
[329683062,1718569114530,-1903.52,0.00029863,90]
[329683063,1718569114561,-466.5920061,0.0003,30]
[329683064,1718569114590,-202.16374478,0.0003,30]
[329683065,1718569114628,-358.21458886,0.0003,120]
[329683066,1718569114657,-200.0,0.0003,120]
[329683067,1718569114686,-766.62,0.0003,30]
[329683068,1718569114721,-256.0,0.0003,120]
[329683069,1718569114754,-2931.78575645,0.0003,30]
[329683070,1718569114800,-2576.0,0.0003,120]
[329683071,1718569114837,-1903.52,0.00030136,90]
[329683072,1718569114874,-400.0,0.00030137,30]
[329683073,1718569114914,-1903.53300755,0.0003041,90]
[329683074,1718569114961,-200.0,0.00030748,120]
[329683075,1718569115016,-200.0,0.00031002,120]
[329683076,1718569115053,-200.0,0.00031558,120]
[329683077,1718569115086,-2834.17785,0.00031963,120]
[329683078,1718569115129,-9285.24363851,0.00032,30]
[329683079,1718569115158,-1000.0,0.00032,30]
[329683080,1718569115201,-200.0,0.00032386,120]
[329683081,1718569115233,-749324.86819635,0.000325,60]
[329683082,1718569119849,-1453936.78343685,0.000325,60]
[329683083,1718569119918,-200.0,0.00032876,30]
[329683084,1718569119959,-200.0,0.00032876,30]
[329683085,1718569120004,-200.0,0.00032876,30]
[329683086,1718569120050,-208.86775914,0.00032876,30]
[329683087,1718569120083,-405.48609165,0.00032877,30]
[329683088,1718569120115,-5338.90983157,0.00033,120]
[329683089,1718569120193,-200.0,0.0003301,120]
[329683090,1718569120262,-200.0,0.0003355,120]
[329683091,1718569120296,-8714.87821101,0.00033755,120]
[329683092,1718569120336,-1172.0,0.0003378,31]
[329683093,1718569120388,-200.0,0.00033851,120]
[329683094,1718569120469,-200000.0,0.000339,30]
[329683095,1718569120499,-22554.1191201,0.000339,30]
[329683096,1718569120536,-250.0,0.00034,120]
[329683097,1718569120569,-19132.57989847,0.00034,35]
[329683098,1718569120609,-510.0,0.00034,120]
[329683099,1718569120644,-253.0,0.00034,120]
[329683100,1718569120679,-5161.0,0.000345,30]
[329683101,1718569120726,-200.0,0.00034628,120]
[329683102,1718569120759,-75148.05036857,0.0003484,120]
[329683103,1718569120825,-200.0,0.00034933,120]
[329683104,1718569120892,-530.57738017,0.00035,120]
[329683105,1718569120955,-20000.0,0.00035,30]
[329683106,1718569121034,-37000.0,0.00035,30]
[329683107,1718569121089,-861.92,0.00035,120]
[329683108,1718569121164,-2000.0,0.00035,30]
[329683109,1718569121261,-2000.0,0.00035,30]
[329683110,1718569121299,-2000.0,0.00035,30]
[329683111,1718569121339,-4506.55703098,0.00035,120]
[329683112,1718569121381,-4804.74477026,0.00035,120]
[329683113,1718569121413,-4254.00975664,0.00035,120]
[329683114,1718569121446,-10000.0,0.00035,40]
[329683115,1718569121478,-2304.23888282,0.00035,60]
[329683116,1718569121512,-401.58077887,0.00035616,30]
[329683117,1718569121555,-1000.0,0.00036,30]
[329683118,1718569121597,-59581.46461542,0.00036,30]
[329683119,1718569121644,-200.0,0.00036189,120]
[329683120,1718569121712,-200.0,0.00036415,120]
[329683121,1718569121758,-2834.17785,0.0003653,120]
[329683122,1718569121807,-1000.0,0.00037,30]
[329683123,1718569121841,-1108.49077304,0.0003707,31]
[329683124,1718569121904,-2209.32447638,0.00038,120]
[329683125,1718569121942,-3189.95,0.00038,30]
[329683126,1718569121984,-1000.0,0.00038,30]
[329683127,1718569122020,-500.0,0.00038,120]
[329683128,1718569122061,-4804.74477026,0.00038,120]
[329683129,1718569122102,-4254.00975664,0.00038,120]
[329683130,1718569122141,-8714.87821101,0.00038755,120]
[329683131,1718569122188,-24353.65623015,0.0003888,120]
[329683132,1718569126157,-286.27415035,0.00036699,120]
[329683133,1718569126222,-177502.92939816,0.0003888,120]
[329683134,1718569126270,-1000.0,0.00039,39]
[329683135,1718569126333,-1000.0,0.00039,30]
[329683136,1718569126378,-50000.0,0.000395,30]
[329683137,1718569126421,-175.90092073,0.000396,120]
[329683138,1718569126497,-814.29805521,0.000399,114]
[329683139,1718569126558,-5000.0,0.000399,120]
[329683140,1718569126605,-312.37981555,0.0004,120]
[329683141,1718569126650,-523.0,0.0004,120]
[329683142,1718569126708,-848.61952885,0.0004,30]
[329683143,1718569126756,-1000.0,0.0004,30]
[329683144,1718569126824,-50555.0,0.0004,30]
[329683145,1718569126895,-1127.89152208,0.0004,120]
[329683146,1718569126962,-52881.97006877,0.0004,120]
[329683147,1718569127018,-4246.65554182,0.0004,60]
[329683148,1718569127086,-1000.0,0.00041,30]
[329683149,1718569127144,-474.6,0.00041041,31]
[329683150,1718569127192,-474.6,0.00041041,31]
[329683151,1718569127399,-474.6,0.00041041,31]
[329683152,1718569127461,-474.6,0.00041041,31]
[329683153,1718569127494,-152.0,0.00041041,31]
[329683154,1718569127530,-152.0,0.00041041,31]
[329683155,1718569127560,-152.0,0.00041041,31]
[329683156,1718569127611,-152.0,0.00041041,31]
[329683157,1718569127648,-2834.17785,0.00041096,120]
[329683158,1718569127694,-1000.0,0.00042,30]
[329683159,1718569127731,-1649.43476654,0.000424,120]
[329683160,1718569127783,-1960.58391171,0.000425,30]
[329683161,1718569127853,-20097.0,0.000426,60]
[329683162,1718569127903,-5000.0,0.000429,30]
[329683163,1718569127949,-347.10361605,0.00043,120]
[329683164,1718569128038,-9609.48954051,0.00043,120]
[329683165,1718569128077,-8508.01951328,0.00043,120]
[329683166,1718569128139,-60000.0,0.00043,30]
[329683167,1718569128173,-8714.87821101,0.00043755,120]
[329683168,1718569128271,12142.59429164,0.00029,30]
[329684013,1718569549915,500.0,0.00014087,4]
[329684015,1718569811224,-1000.0,0.00021,21]
[329684115,1718569840791,-1406.2656722,0.00013156,2]
[329684116,1718569840809,-441.37897964,0.00013986,2]
[329684118,1718569840825,-214.70050365,0.00013986,2]
[329684121,1718569840839,-166.05300446,0.00014085,2]
[329684122,1718569840852,-777.89782686,0.00014085,2]
[329684124,1718569840867,-300.0,0.00014085,2]
[329684126,1718569840889,-300.0,0.00014085,2]
[329684128,1718569840914,-500.0,0.00014085,2]
[329684130,1718569840956,-500.0,0.00014086,2]
[329684132,1718569841012,-500.0,0.00014086,2]
[329684134,1718569841031,-500.0,0.00014086,2]
[329684136,1718569841047,-500.0,0.00014086,2]
[329684138,1718569841065,-500.0,0.00014086,2]
[329684140,1718569841085,-500.0,0.00014086,2]
[329684142,1718569841099,-656.74,0.00014086,2]
[329684143,1718569841123,-500.0,0.00014086,2]
[329684145,1718569841144,-454.08217856,0.00014086,2]
[329684148,1718569841163,-500.0,0.00014086,2]
[329684151,1718569841183,-500.0,0.00014086,2]
[329684154,1718569841198,-500.0,0.00014086,2]
[329684156,1718569841223,-1006.55,0.00014086,2]
[329684158,1718569841242,-677.79,0.00014086,2]
[329684160,1718569841255,-726.53,0.00014086,2]
[329684161,1718569841268,-731.16,0.00014086,2]
[329684166,1718569841283,-1240.16,0.00014086,2]
[329684172,1718569841340,-3290.49,0.00014086,2]
[329684173,1718569841353,-152.9091449,0.00014086,2]
[329684186,1718569841611,-690.3908551,0.00014086,2]
[329684187,1718569841664,-500.0,0.00014086,2]
[329684189,1718569841679,-500.0,0.00014086,2]
[329684191,1718569841707,-500.0,0.00014086,2]
[329684193,1718569841731,-2009.25,0.00014086,2]
[329684195,1718569841767,-522.25239558,0.00014086,2]
[329684196,1718569841781,-500.0,0.00014086,2]
[329684197,1718569841829,-593.32,0.00014086,2]
[329684198,1718569841841,-654.25,0.00014086,2]
[329684199,1718569841854,-12897.53,0.00014086,2]
[329684200,1718569841865,-700.63,0.00014086,2]
[329684201,1718569841888,-500.0,0.00014086,2]
[329684202,1718569841906,-500.0,0.00014086,2]
[329684203,1718569841942,-5856.75,0.00014086,2]
[329684204,1718569841964,-500.0,0.00014086,2]
[329684206,1718569841980,-1259.49,0.00014086,2]
[329684208,1718569842000,-500.0,0.00014086,2]
[329684209,1718569842011,-2714.78,0.00014086,2]
[329684211,1718569842029,-5184.58,0.00014086,2]
[329684212,1718569842044,-561.21,0.00014086,2]
[329684213,1718569842055,-500.0,0.00014086,2]
[329684214,1718569842073,-500.0,0.00014086,2]
[329684216,1718569842087,-500.0,0.00014086,2]
[329684217,1718569842101,-500.0,0.00014086,2]
[329684218,1718569842130,-500.0,0.00014086,2]
[329684219,1718569842150,-631.07510891,0.00014086,2]
[329684220,1718569842182,-9284.88,0.00014086,2]
[329684221,1718569842219,-571.58,0.00014086,2]
[329684222,1718569842280,-402.14291596,0.00014086,2]
[329684223,1718569842302,-500.0,0.00014086,2]
[329684224,1718569842314,-500.0,0.00014087,2]
[329684225,1718569842334,-500.0,0.00014087,2]
[329684226,1718569842369,-500.0,0.00014087,2]
[329684227,1718569842392,-500.0,0.00014087,2]
[329684228,1718569842407,-500.0,0.00014087,2]
[329684229,1718569842419,-485.89413514,0.00014087,2]
[329684230,1718569842461,-14.10586486,0.00014087,2]
[329684231,1718569842492,-500.0,0.00014087,2]
[329684232,1718569842503,-500.0,0.00014087,2]
[329684233,1718569842515,-561.84,0.00014087,2]
[329684235,1718569842526,-610.06,0.00014087,2]
[329684237,1718569842539,-500.0,0.00014087,2]
[329684239,1718569842556,-500.0,0.00014087,2]
[329684240,1718569842580,-500.0,0.00014087,2]
[329684241,1718569842590,-500.0,0.00014087,2]
[329684242,1718569842622,-540.35,0.00014087,2]
[329684243,1718569842634,-500.0,0.00014087,2]
[329684244,1718569842645,-500.0,0.00014088,2]
[329684245,1718569842672,-500.0,0.0001436,2]
[329684246,1718569842695,-500.0,0.0001436,2]
[329684247,1718569842706,-229.85929264,0.0001436,2]
[329684248,1718569842744,-282.02322629,0.0001436,2]
[329684257,1718569843412,-217.97677371,0.0001436,2]
[329684258,1718569843440,-500.0,0.0001436,2]
[329684259,1718569843453,-500.0,0.0001436,2]
[329684260,1718569843464,-656.74,0.0001436,2]
[329684261,1718569843488,-500.0,0.0001436,2]
[329684262,1718569843500,-573.39642123,0.0001436,2]
[329684263,1718569843511,-500.0,0.0001436,2]
[329684264,1718569843523,-500.0,0.0001436,2]
[329684265,1718569843534,-1006.55,0.0001436,2]
[329684266,1718569843545,-677.79,0.0001436,2]
[329684267,1718569843565,-726.53,0.0001436,2]
[329684268,1718569843577,-731.16,0.0001436,2]
[329684269,1718569843615,-1240.16,0.0001436,2]
[329684270,1718569843646,-3290.49,0.0001436,2]
[329684271,1718569843684,-843.3,0.0001436,2]
[329684272,1718569843709,-500.0,0.0001436,2]
[329684274,1718569843728,-500.0,0.0001436,2]
[329684276,1718569843740,-500.0,0.0001436,2]
[329684277,1718569843754,-2009.25,0.0001436,2]
[329684279,1718569843765,-500.0,0.0001436,2]
[329684281,1718569843783,-593.32,0.0001436,2]
[329684282,1718569843796,-654.25,0.0001436,2]
[329684284,1718569843808,-12897.53,0.0001436,2]
[329684286,1718569843820,-700.63,0.0001436,2]
[329684288,1718569843862,-500.0,0.0001436,2]
[329684291,1718569843879,-5856.75,0.0001436,2]
[329684294,1718569843891,-500.0,0.0001436,2]
[329684297,1718569843905,-1259.49,0.0001436,2]
[329684299,1718569843918,-500.0,0.0001436,2]
[329684302,1718569843954,-2714.78,0.0001436,2]
[329684305,1718569843999,-5184.58,0.0001436,2]
[329684306,1718569844021,-561.21,0.0001436,2]
[329684309,1718569844052,-322.29175852,0.0001436,2]
[329684311,1718569844075,-500.0,0.0001436,2]
[329684314,1718569844094,-500.0,0.0001436,2]
[329684316,1718569844119,-7453.06635022,0.0001436,2]
[329684319,1718569844161,-302.0,0.0001436,2]
[329684460,1718569847413,-1529.81364978,0.0001436,2]
[329684461,1718569847430,-571.58,0.0001436,2]
[329684463,1718569847441,-500.0,0.0001436,2]
[329684465,1718569847472,-500.0,0.00014361,2]
[329684467,1718569847488,-500.0,0.00014361,2]
[329684469,1718569847506,-218.20530107,0.00014361,2]
[329684472,1718569847558,-281.79469893,0.00014361,2]
[329684474,1718569847600,-500.0,0.00014361,2]
[329684476,1718569847616,-324.49291165,0.00014361,2]
[329684478,1718569847639,-500.0,0.00014361,2]
[329684480,1718569847665,-561.84,0.00014361,2]
[329684482,1718569847697,-610.06,0.00014361,2]
[329684484,1718569847724,-500.0,0.00014361,2]
[329684486,1718569847752,-500.0,0.00014361,2]
[329684489,1718569847777,-348.2999519,0.00014361,2]
[329684492,1718569847833,-192.0500481,0.00014361,2]
[329684494,1718569847846,-500.0,0.00014634,2]
[329684496,1718569847872,-500.0,0.00014634,2]
[329684498,1718569847924,-500.0,0.00014634,2]
[329684500,1718569847947,-500.0,0.00014634,2]
[329684502,1718569847958,-656.74,0.00014634,2]
[329684504,1718569847991,-500.0,0.00014634,2]
[329684506,1718569848004,-500.0,0.00014634,2]
[329684509,1718569848032,-1006.55,0.00014634,2]
[329684512,1718569848060,-677.79,0.00014634,2]
[329684514,1718569848092,-726.53,0.00014634,2]
[329684515,1718569848108,-731.16,0.00014634,2]
[329684517,1718569848125,-1240.16,0.00014634,2]
[329684519,1718569848165,-3290.49,0.00014634,2]
[329684522,1718569848177,-843.3,0.00014634,2]
[329684523,1718569848191,-500.0,0.00014634,2]
[329684525,1718569848206,-500.0,0.00014634,2]
[329684527,1718569848224,-2009.25,0.00014634,2]
[329684529,1718569848235,-299.09560693,0.00014634,2]
[329684531,1718569848250,-593.32,0.00014634,2]
[329684533,1718569848263,-654.25,0.00014634,2]
[329684535,1718569848279,-8224.47925664,0.00014634,2]
[329684538,1718569848340,-590.28,0.00014086,2]
[329684540,1718569848353,-237.56,0.00014634,2]
[329684576,1718569849121,-4435.49074336,0.00014634,2]
[329684578,1718569849157,-700.63,0.00014634,2]
[329684580,1718569849189,-500.0,0.00014634,2]
[329684582,1718569849208,-340.15245979,0.00014634,2]
[329684584,1718569849226,-5516.59754021,0.00014634,2]
[329684586,1718569849237,-1259.49,0.00014634,2]
[329684588,1718569849249,-500.0,0.00014634,2]
[329684590,1718569849263,-2714.78,0.00014634,2]
[329684592,1718569849277,-5184.58,0.00014634,2]
[329684594,1718569849291,-561.21,0.00014634,2]
[329684596,1718569849303,-500.0,0.00014634,2]
[329684598,1718569849325,-500.0,0.00014634,2]
[329684599,1718569849344,-9284.88,0.00014634,2]
[329684601,1718569849358,-571.58,0.00014634,2]
[329684603,1718569849370,-500.0,0.00014634,2]
[329684605,1718569849382,-500.0,0.00014635,2]
[329684607,1718569849394,-500.0,0.00014635,2]
[329684608,1718569849409,-500.0,0.00014635,2]
[329684610,1718569849421,-500.0,0.00014635,2]
[329684612,1718569849433,-561.84,0.00014635,2]
[329684614,1718569849446,-610.06,0.00014635,2]
[329684616,1718569849457,-500.0,0.00014635,2]
[329684618,1718569849469,-540.35,0.00014635,2]
[329684620,1718569849483,-500.0,0.00014908,2]
[329684622,1718569849495,-500.0,0.00014908,2]
[329684624,1718569849507,-500.0,0.00014908,2]
[329684627,1718569849518,-500.0,0.00014908,2]
[329684630,1718569849532,-656.74,0.00014908,2]
[329684634,1718569849551,-220.74,0.00014908,2]
[329684637,1718569849562,-500.0,0.00014908,2]
[329684640,1718569849581,-1006.55,0.00014908,2]
[329684642,1718569849598,-677.79,0.00014908,2]
[329684644,1718569849612,-726.53,0.00014908,2]
[329684646,1718569849628,-731.16,0.00014908,2]
[329684648,1718569849656,-1240.16,0.00014908,2]
[329684651,1718569849705,-3290.49,0.00014908,2]
[329684652,1718569849725,-843.3,0.00014908,2]
[329684654,1718569849737,-500.0,0.00014908,2]
[329684656,1718569849748,-500.0,0.00014908,2]
[329684658,1718569849760,-500.0,0.00014908,2]
[329684660,1718569849773,-2009.25,0.00014908,2]
[329684662,1718569849792,-593.32,0.00014908,2]
[329684664,1718569849808,-654.25,0.00014908,2]
[329684666,1718569849819,-6464.67568108,0.00014908,2]
[329684696,1718569850287,-4606.32446201,0.00014908,2]
[329684698,1718569850301,-680.0,0.00014908,2]
[329684700,1718569850316,-279.75,0.00014908,2]
[329684704,1718569850360,-866.77985691,0.00014908,2]
[329684705,1718569850373,-700.63,0.00014908,2]
[329684707,1718569850398,-500.0,0.00014908,2]
[329684708,1718569850411,-5856.75,0.00014908,2]
[329684710,1718569850422,-1259.49,0.00014908,2]
[329684712,1718569850434,-500.0,0.00014908,2]
[329684713,1718569850445,-2714.78,0.00014908,2]
[329684715,1718569850468,-5184.58,0.00014908,2]
[329684717,1718569850478,-73.26185855,0.00014908,2]
[329684720,1718569850497,-487.94814145,0.00014908,2]
[329684721,1718569850508,-500.0,0.00014908,2]
[329684723,1718569850521,-500.0,0.00014908,2]
[329684725,1718569850532,-3361.69768302,0.00014908,2]
[329684849,1718569856289,-160.0,0.0002156,22]
[329684850,1718569856388,-840.0,0.00022,22]
[329684851,1718569858523,-160.0,0.00022,22]
[329684852,1718569870448,-1000.0,0.00023,23]
[329684853,1718569897463,-1000.0,0.00024,24]
[329684854,1718569916941,-500.0,0.00024109,90]
[329684855,1718569918820,-500.0,0.00024109,90]
[329684857,1718569934257,-903.52,0.00024109,90]
[329684858,1718570011144,949.47910036,9.999e-05,2]
[329684860,1718570046704,-718.0,0.00024383,90]
[329684863,1718570099057,-1185.52,0.00024383,90]
[329684864,1718570127934,-814.48,0.00024657,90]
[329684865,1718570133782,-1089.04,0.00024657,90]
[329684866,1718570133899,-910.96,0.00024931,90]
[329684867,1718570137447,-992.56,0.00024931,90]
[329684871,1718570169873,-1007.44,0.00025205,90]
[329684873,1718570490810,500.0,0.00014085,4]
[329684874,1718570491141,500.0,0.00014359,4]
[329684911,1718571034612,-300.0,0.00014083,2]
[329684912,1718571034623,-500.0,0.00014084,2]
[329684913,1718571034634,-500.0,0.00014084,2]
[329684914,1718571034652,-500.0,0.00014084,2]
[329684915,1718571034680,-500.0,0.00014084,2]
[329684916,1718571034691,-664.97,0.00014084,2]
[329684917,1718571034702,-2881.75,0.00014084,2]
[329684918,1718571034712,-500.0,0.00014084,2]
[329684919,1718571034730,-244.67949,0.00014084,2]
[329684980,1718571040524,-255.32051,0.00014084,2]
[329684982,1718571040561,-586.88,0.00014084,2]
[329684984,1718571040601,-632.14,0.00014084,2]
[329684985,1718571040645,-11703.65,0.00014084,2]
[329684987,1718571040668,-500.0,0.00014084,2]
[329684989,1718571040696,-500.0,0.00014084,2]
[329684993,1718571040748,-1167.6,0.00014084,2]
[329684994,1718571040775,-4608.33,0.00014084,2]
[329684995,1718571040812,-2397.98,0.00014084,2]
[329684997,1718571040865,-500.0,0.00014084,2]
[329684998,1718571040889,-500.0,0.00014084,2]
[329684999,1718571040904,-174.45816398,0.00014085,2]
[329685000,1718571040920,-359.34183602,0.00014085,2]
[329685001,1718571040959,-500.0,0.00014085,2]
[329685002,1718571040973,-512.44,0.00014085,2]
[329685003,1718571040988,-500.0,0.00014085,2]
[329685004,1718571041064,-500.0,0.00014085,2]
[329685005,1718571041100,-500.0,0.00014085,2]
[329685006,1718571041121,-500.0,0.00014085,2]
[329685007,1718571041136,-500.0,0.00014085,2]
[329685008,1718571041153,-266.53475909,0.00014085,2]
[329685009,1718571041186,-233.46524091,0.00014085,2]
[329685010,1718571041207,-500.0,0.00014085,2]
[329685011,1718571041237,-500.0,0.00014085,2]
[329685012,1718571041278,-500.0,0.00014085,2]
[329685013,1718571041304,-296.14964815,0.00014085,2]
[329685014,1718571041322,-271.96035185,0.00014085,2]
[329685015,1718571041347,-500.0,0.00014085,2]
[329685016,1718571041369,-228.34984834,0.00014085,2]
[329685017,1718571041388,-271.65015166,0.00014085,2]
[329685018,1718571041420,-585.66,0.00014085,2]
[329685019,1718571041442,-626.28,0.00014085,2]
[329685020,1718571041500,-500.0,0.00014085,2]
[329685021,1718571041513,-500.0,0.00014085,2]
[329685022,1718571041523,-866.17,0.00014085,2]
[329685023,1718571041542,-500.0,0.00014085,2]
[329685024,1718571041552,-1128.09,0.00014085,2]
[329685025,1718571041564,-500.0,0.00014085,2]
[329685026,1718571041587,-536.1,0.00014085,2]
[329685027,1718571041624,-921.51,0.00014085,2]
[329685028,1718571041638,-500.0,0.00014085,2]
[329685029,1718571041649,-2985.79542869,0.00014085,2]
[329685066,1718571046145,-5460.19457131,0.00014085,2]
[329685067,1718571046159,-1802.99,0.00014085,2]
[329685068,1718571046170,-509.34,0.00014085,2]
[329685069,1718571046182,-500.0,0.00014085,2]
[329685070,1718571046196,-520.97,0.00014085,2]
[329685071,1718571046209,-500.0,0.00014085,2]
[329685072,1718571046222,-500.0,0.00014085,2]
[329685073,1718571046237,-500.0,0.00014085,2]
[329685074,1718571046252,-5278.99,0.00014085,2]
[329685075,1718571046265,-591.19,0.00014085,2]
[329685076,1718571046283,-276.16,0.00014085,2]
[329685077,1718571046323,-577.02,0.00014358,2]
[329685078,1718571046334,-591.4566365,0.00014358,2]
[329685079,1718571046348,-500.0,0.00014358,2]
[329685080,1718571046360,-664.97,0.00014358,2]